[Event "41th GRE-ch Women 2018"]
[Site "Thessaloniki"]
[Date "2018.12.16"]
[Round "5"]
[White "Petraki, Evaggelia"]
[Black "Markantonaki, Haritomeni"]
[Result "1-0"]
[ECO "B47"]
[WhiteElo "1756"]
[BlackElo "2152"]
[Annotator "NA"]
[PlyCount "113"]
[EventDate "2018.12.12"]
[EventType "tourn"]
[EventCountry "GRE"]
[SourceTitle "playchess.com"]
[Source "ChessBase"]
[SourceQuality "1"]
[TimeControl "40/5400+30:1800+30"]

1. e4 {[%emt 0:00:00]} c5 {[%emt 0:00:00]} 2. Nf3 {[%emt 0:00:00]} e6 {[%emt 0:00:00]} 3. d4 {[%emt 0:00:00]} cxd4 {[%emt 0:00:00]} 4. Nxd4 {[%emt 0:00:00]} Nc6 {[%emt 0:00:04]} 5. Nc3 {[%emt 0:00:00]} Qc7 {[%emt 0:00:15]} 6. Qd3 {[%emt 0:00:00]} a6 {[%emt 0:01:29]} 7. Nxc6 {[%emt 0:00:01]} bxc6 {[%emt 0:00:46]} 8. Qg3 {[%emt 0:01:01]} d6 {[%emt 0:02:52]} 9. Bc4 {[%emt 0:04:04]} Ne7 {[%emt 0:05:56]} 10. Be3 {[%emt 0:05:12]} Ng6 {[%emt 0:00:56]} 11. h4 {[%emt 0:02:50]} Ne5 {[%emt 0:03:13]} 12. Bb3 {[%emt 0:00:15]} c5 {[%emt 0:01:05]} 13. f4 {[%emt 0:08:38]} Nc6 {[%emt 0:00:12]} 14. Rd1 {[%emt 0:00:06]} Bd7 {[%emt 0:06:07]} 15. O-O {[%emt 0:02:58]} O-O-O {[%emt 0:09:27]} 16. Bc4 {[%emt 0:00:36]} Kb7 {[%emt 0:03:06]} 17. f5 {[%emt 0:10:22]} Ne5 {[%emt 0:02:09]} 18. Be2 {[%emt 0:07:00]} Be7 {[%emt 0:01:39]} 19. Bf4 {[%emt 0:02:47]} Bf6 {[%emt 0:00:23]} 20. Nb1 {[%emt 0:03:22]} h5 {[%emt 0:12:10]} 21. Rd2 {[%emt 0:15:35]} Bc6 {[%emt 0:12:45]} 22. Re1 {[%emt 0:10:11]} Qb6 {[%emt 0:07:43]} 23. Na3 {[%emt 0:03:56]} Bxe4 {[%emt 0:07:05]} 24. fxe6 {[%emt 0:00:51]} fxe6 {[%emt 0:01:47]} 25. Bxa6+ {[%emt 0:01:48]} Kxa6 {[%emt 0:01:48]} 26. Rxe4 {[%emt 0:00:10]} Qc6 {[%emt 0:01:51]} 27. Re1 {[%emt 0:06:08]} Rd7 {[%emt 0:04:27]} 28. Red1 {[%emt 0:08:22]} Rhd8 {[%emt 0:00:27]} 29. Qe3 {[%emt 0:03:42]} Rb8 {[%emt 0:05:27]} 30. Qe2+ {[%emt 0:01:04]} Ka7 {[%emt 0:00:19]} 31. c3 {[%emt 0:01:14]} Rbd8 {[%emt 0:04:26]} 32. Nc4 Nxc4 {[%emt 0:00:16]} 33. Qxc4 {[%emt 0:01:25]} d5 {[%emt 0:01:35]} 34. Qe2 {[%emt 0:00:43]} g6 {[%emt 0:00:55]} 35. Qf2 {[%emt 0:02:21]} e5 {[%emt 0:00:33]} 36. Bg5 Bxg5 {[%emt 0:00:50]} 37. hxg5 {[%emt 0:00:37]} d4 {[%emt 0:01:12]} 38. b4 {[%emt 0:00:04]} cxb4 {[%emt 0:00:38]} 39. cxd4 {[%emt 0:00:10]} Qb6 {[%emt 0:00:35]} 40. d5 {[%emt 0:00:00]} Qxf2+ {[%emt 0:00:00]} 41. Kxf2 {[%emt 0:03:58]} Kb6 {[%emt 0:07:14]} 42. Ke3 {[%emt 0:00:38]} Rf8 {[%emt 0:03:03]} 43. Rc1 {[%emt 0:03:21]} Rd6 {[%emt 0:00:21]} 44. Ke4 {[%emt 0:02:12]} Rf5 {[%emt 0:00:31]} 45. Rdc2 {[%emt 0:00:57]} Rxg5 {[%emt 0:00:41]} 46. Rc6+ {[%emt 0:00:05]} Rxc6 {[%emt 0:00:04]} 47. Rxc6+ {[%emt 0:00:02]} Kb7 {[%emt 0:02:26]} 48. Rc2 {[%emt 0:00:04]} Rf5 {[%emt 0:05:01]} 49. d6 {[%emt 0:04:25]} Rf1 {[%emt 0:00:46]} 50. Kxe5 {[%emt 0:00:19]} Re1+ {[%emt 0:01:03]} 51. Kf6 {[%emt 0:00:05]} Rd1 {[%emt 0:01:03]} 52. Ke7 {[%emt 0:00:07]} Re1+ {[%emt 0:00:07]} 53. Kd8 {[%emt 0:00:15]} Rd1 {[%emt 0:00:31]} 54. d7 {[%emt 0:00:09]} Rd3 {[%emt 0:03:18]} 55. Re2 {[%emt 0:03:11]} Kc6 {[%emt 0:02:12]} 56. Kc8 {[%emt 0:00:58]} Rxd7 {[%emt 0:01:00]} 57. Rc2+ {[%emt 0:00:03]} 1-0

[Event "41th GRE-ch Women 2018"]
[Site "Thessaloniki"]
[Date "2018.12.16"]
[Round "5"]
[White "Nikolaidou, Eleni"]
[Black "Grapsa, Georgia"]
[Result "0-1"]
[ECO "E13"]
[WhiteElo "1707"]
[BlackElo "2097"]
[Annotator "NA"]
[PlyCount "64"]
[EventDate "2018.12.12"]
[EventType "tourn"]
[EventCountry "GRE"]
[SourceTitle "playchess.com"]
[Source "ChessBase"]
[SourceQuality "1"]
[TimeControl "40/5400+30:1800+30"]

1. d4 {[%emt 0:00:00]} Nf6 {[%emt 0:00:00]} 2. c4 {[%emt 0:00:07]} e6 {[%emt 0:00:00]} 3. Nc3 {[%emt 0:00:13]} Bb4 {[%emt 0:00:00]} 4. Nf3 {[%emt 0:00:55]} b6 {[%emt 0:00:16]} 5. Bg5 {[%emt 0:03:31]} h6 {[%emt 0:01:21]} 6. Bh4 {[%emt 0:00:32]} Bb7 {[%emt 0:04:37]} 7. e3 {[%emt 0:02:13]} g5 {[%emt 0:02:09]} 8. Bg3 {[%emt 0:00:17]} Ne4 {[%emt 0:00:03]} 9. Qc2 {[%emt 0:05:29]} f5 {[%emt 0:08:02]} 10. Ne5 {[%emt 0:14:54]} Qf6 {[%emt 0:07:43]} 11. Nd3 {[%emt 0:03:17]} Bxc3+ {[%emt 0:00:10]} 12. bxc3 {[%emt 0:00:09]} d6 {[%emt 0:01:32]} 13. c5 {[%emt 0:15:06]} bxc5 {[%emt 0:04:29]} 14. Rb1 {[%emt 0:01:19]} Bc6 {[%emt 0:00:26]} 15. f3 {[%emt 0:01:58]} Nxg3 {[%emt 0:01:18]} 16. hxg3 {[%emt 0:00:00]} Nd7 {[%emt 0:01:33]} 17. Nf2 {[%emt 0:10:22]} e5 {[%emt 0:22:59]} 18. g4 {[%emt 0:02:46]} exd4 {[%emt 0:03:30]} 19. cxd4 {[%emt 0:00:12]} f4 {[%emt 0:04:29]} 20. Ne4 {[%emt 0:10:14]} Bxe4 {[%emt 0:02:46]} 21. Qxe4+ {[%emt 0:00:17]} Kf7 {[%emt 0:00:03]} 22. Bb5 {[%emt 0:15:22]} Nb6 {[%emt 0:03:59]} 23. O-O {[%emt 0:05:22]} d5 {[%emt 0:01:12]} 24. Qc2 {[%emt 0:00:15]} c4 {[%emt 0:00:45]} 25. Rbd1 {[%emt 0:02:55]} c6 {[%emt 0:02:42]} 26. Ba4 {[%emt 0:00:17]} fxe3 {[%emt 0:00:11]} 27. Rfe1 {[%emt 0:00:28]} Rae8 {[%emt 0:00:45]} 28. Re2 {[%emt 0:01:23]} Kg7 {[%emt 0:03:16]} 29. Rde1 {[%emt 0:00:23]} h5 {[%emt 0:04:53]} 30. Rxe3 {[%emt 0:01:27]} Rxe3 {[%emt 0:00:40]} 31. Rxe3 {[%emt 0:00:07]} Nxa4 {[%emt 0:00:17]} 32. Qxa4 {[%emt 0:00:22]} Qxd4 {[%emt 0:00:07]} 0-1

[Event "41th GRE-ch Women 2018"]
[Site "Thessaloniki"]
[Date "2018.12.17"]
[Round "6"]
[White "Pavlidou, Ekaterini"]
[Black "Petraki, Evaggelia"]
[Result "1-0"]
[ECO "E24"]
[WhiteElo "2185"]
[BlackElo "1756"]
[Annotator "NA"]
[PlyCount "59"]
[EventDate "2018.12.12"]
[EventType "tourn"]
[EventCountry "GRE"]
[SourceTitle "playchess.com"]
[Source "ChessBase"]
[SourceQuality "1"]
[TimeControl "40/5400+30:1800+30"]

1. d4 {[%emt 0:00:00]} Nf6 {[%emt 0:00:00]} 2. c4 {[%emt 0:00:00]} e6 {[%emt 0:00:00]} 3. Nc3 {[%emt 0:00:15]} Bb4 {[%emt 0:00:00]} 4. a3 {[%emt 0:00:15]} Bxc3+ {[%emt 0:00:00]} 5. bxc3 {[%emt 0:00:09]} d6 {[%emt 0:03:35]} 6. f3 {[%emt 0:03:21]} Nh5 {[%emt 0:01:11]} 7. Nh3 {[%emt 0:03:57]} f5 {[%emt 0:00:52]} 8. Bg5 {[%emt 0:06:29]} Nf6 {[%emt 0:03:07]} 9. e4 {[%emt 0:00:15]} h6 {[%emt 0:02:37]} 10. Bd2 {[%emt 0:03:06]} fxe4 {[%emt 0:07:46]} 11. fxe4 {[%emt 0:00:18]} e5 {[%emt 0:00:20]} 12. Nf2 {[%emt 0:04:43]} Qe7 {[%emt 0:04:32]} 13. Be2 {[%emt 0:05:03]} O-O $15 {[%emt 0:02:42]} 14. Qb1 {[%emt 0:23:47]} Nbd7 {[%emt 0:15:14]} 15. O-O {[%emt 0:07:00]} exd4 {[%emt 0:03:38]} 16. cxd4 {[%emt 0:00:08]} c5 {[%emt 0:00:05]} 17. d5 {[%emt 0:01:24]} Ne5 {[%emt 0:01:43]} 18. h3 {[%emt 0:00:09]} Qe8 {[%emt 0:06:36]} 19. Bc3 {[%emt 0:03:52]} Ng6 {[%emt 0:09:24]} 20. Qb2 {[%emt 0:03:11]} Nh4 {[%emt 0:07:03]} 21. g3 {[%emt 0:12:38]} Qg6 {[%emt 0:14:09]} 22. Kh2 {[%emt 0:00:22]} Nh5 {[%emt 0:06:26]} 23. Bxh5 {[%emt 0:08:09]} Qxh5 {[%emt 0:00:02]} 24. gxh4 {[%emt 0:00:50]} Qf3 {[%emt 0:00:42]} 25. Ng4 {[%emt 0:01:10]} Qxe4 {[%emt 0:00:18]} 26. Rxf8+ {[%emt 0:00:14]} Kxf8 {[%emt 0:00:02]} 27. Bxg7+ {[%emt 0:01:07]} Ke7 {[%emt 0:00:09]} 28. Rf1 {[%emt 0:00:41]} Bxg4 {[%emt 0:00:57]} 29. hxg4 {[%emt 0:00:19]} Qxg4 {[%emt 0:02:41]} 30. Qxb7+ {[%emt 0:00:12]} 1-0

[Event "41th GRE-ch Women 2018"]
[Site "Thessaloniki"]
[Date "2018.12.17"]
[Round "6"]
[White "Markantonaki, Haritomeni"]
[Black "Fragkou, Eleni"]
[Result "1-0"]
[ECO "B90"]
[WhiteElo "2152"]
[BlackElo "2031"]
[Annotator "NA"]
[PlyCount "73"]
[EventDate "2018.12.12"]
[EventType "tourn"]
[EventCountry "GRE"]
[SourceTitle "playchess.com"]
[Source "ChessBase"]
[SourceQuality "1"]
[TimeControl "40/5400+30:1800+30"]

1. e4 {[%emt 0:00:00]} c5 {[%emt 0:00:00]} 2. Nf3 {[%emt 0:00:00]} d6 {[%emt 0:00:00]} 3. d4 {[%emt 0:00:00]} cxd4 {[%emt 0:00:00]} 4. Nxd4 {[%emt 0:00:00]} Nf6 {[%emt 0:00:00]} 5. Nc3 {[%emt 0:00:00]} a6 {[%emt 0:00:07]} 6. Be3 {[%emt 0:00:40]} e5 {[%emt 0:00:58]} 7. Nb3 {[%emt 0:00:26]} Be6 {[%emt 0:00:27]} 8. f4 {[%emt 0:01:03]} Ng4 {[%emt 0:04:26]} 9. Bd2 {[%emt 0:00:35]} exf4 {[%emt 0:05:48]} 10. Bxf4 {[%emt 0:00:08]} Nc6 {[%emt 0:00:41]} 11. Qd2 {[%emt 0:01:17]} Be7 {[%emt 0:09:27]} 12. O-O-O {[%emt 0:01:46]} O-O {[%emt 0:05:46] LiveBook: 4 Games} 13. h3 {[%emt 0:14:23]} Nge5 {[%emt 0:02:26]} 14. Nd5 $14 {[%emt 0:00:17]} Bxd5 {[%emt 0:13:06]} 15. exd5 {[%emt 0:00:06]} Nb8 {[%emt 0:04:33]} 16. g4 {[%emt 0:03:15]} Nbd7 {[%emt 0:03:08]} 17. Nd4 {[%emt 0:04:00]} Nc5 {[%emt 0:20:43]} 18. Kb1 {[%emt 0:16:23]} Qb6 {[%emt 0:08:43]} 19. g5 {[%emt 0:06:38]} Rfc8 {[%emt 0:07:14]} 20. Nb3 {[%emt 0:04:50]} Ncd7 {[%emt 0:08:43]} 21. h4 {[%emt 0:01:42]} a5 {[%emt 0:01:04]} 22. a3 {[%emt 0:12:49]} a4 {[%emt 0:00:08]} 23. Nc1 {[%emt 0:00:10]} Ra5 {[%emt 0:02:30]} 24. Na2 {[%emt 0:02:04]} Bf8 {[%emt 0:00:43]} 25. Nb4 {[%emt 0:02:57]} Nc4 {[%emt 0:00:23]} 26. Bxc4 {[%emt 0:01:52]} Rxc4 {[%emt 0:00:04]} 27. h5 {[%emt 0:00:43]} Rb5 {[%emt 0:01:03]} 28. Rh3 {[%emt 0:04:19]} Nc5 {[%emt 0:00:21]} 29. Be3 {[%emt 0:02:34]} Qc7 {[%emt 0:00:27]} 30. g6 {[%emt 0:03:16]} Ne4 {[%emt 0:00:47]} 31. gxh7+ {[%emt 0:01:55]} Kh8 {[%emt 0:00:09]} 32. Qd3 {[%emt 0:00:55]} Be7 {[%emt 0:01:10]} 33. Bd4 {[%emt 0:01:16]} Nf6 {[%emt 0:00:36]} 34. h6 {[%emt 0:00:46]} g6 {[%emt 0:00:12]} 35. Rf1 {[%emt 0:00:57]} Rxd4 {[%emt 0:00:10]} 36. Qxd4 {[%emt 0:00:06]} Qd8 {[%emt 0:00:30]} 37. Rhf3 {[%emt 0:00:15]} 1-0

[Event "41th GRE-ch Women 2018"]
[Site "Thessaloniki"]
[Date "2018.12.17"]
[Round "6"]
[White "Makka, Ioulia"]
[Black "Nikolaidou, Eleni"]
[Result "1-0"]
[ECO "B20"]
[WhiteElo "2065"]
[BlackElo "1707"]
[Annotator "NA"]
[PlyCount "81"]
[EventDate "2018.12.12"]
[EventType "tourn"]
[EventCountry "GRE"]
[SourceTitle "playchess.com"]
[Source "ChessBase"]
[SourceQuality "1"]
[TimeControl "40/5400+30:1800+30"]

1. e4 {[%emt 0:00:00]} c5 {[%emt 0:00:00]} 2. c4 {[%emt 0:00:27]} Nc6 {[%emt 0:00:00]} 3. Ne2 {[%emt 0:00:41]} d6 {[%emt 0:00:44]} 4. d4 {[%emt 0:00:42]} cxd4 {[%emt 0:00:10]} 5. Nxd4 {[%emt 0:00:07]} Nf6 {[%emt 0:00:10]} 6. Nc3 {[%emt 0:01:36]} e5 {[%emt 0:00:40]} 7. Nc2 {[%emt 0:03:11]} h6 {[%emt 0:03:52]} 8. Be2 {[%emt 0:01:44]} Be7 {[%emt 0:02:43]} 9. O-O {[%emt 0:06:56]} O-O {[%emt 0:00:20]} 10. b3 {[%emt 0:15:26]} Qc7 $16 {[%emt 0:16:02]} 11. Bb2 {[%emt 0:04:55]} Be6 {[%emt 0:03:20]} 12. Rc1 {[%emt 0:17:42]} Rad8 {[%emt 0:17:22]} 13. Nd5 {[%emt 0:14:20]} Qb8 {[%emt 0:01:54]} 14. Nxe7+ {[%emt 0:01:29]} Nxe7 {[%emt 0:00:12]} 15. Bd3 {[%emt 0:02:20]} Ng6 {[%emt 0:05:25]} 16. Re1 {[%emt 0:01:57]} a6 {[%emt 0:01:15]} 17. Nb4 {[%emt 0:02:51]} Nf4 {[%emt 0:04:00]} 18. Bf1 {[%emt 0:00:53]} Rd7 {[%emt 0:10:40]} 19. Nd3 {[%emt 0:04:11]} Nxd3 {[%emt 0:00:45]} 20. Qxd3 {[%emt 0:00:36]} Nh5 {[%emt 0:10:00]} 21. g3 {[%emt 0:07:39]} Qd8 {[%emt 0:02:31]} 22. Rcd1 {[%emt 0:02:01]} Nf6 {[%emt 0:03:19]} 23. Rd2 {[%emt 0:00:49]} Qb6 {[%emt 0:04:27]} 24. Qe3 {[%emt 0:01:12]} Qc6 {[%emt 0:03:05]} 25. Qe2 {[%emt 0:01:03]} Nh7 {[%emt 0:02:11]} 26. Bg2 {[%emt 0:00:57]} Qc5 {[%emt 0:03:09]} 27. Qe3 {[%emt 0:01:15]} Qa5 {[%emt 0:00:59]} 28. Bc3 {[%emt 0:00:21]} Qd8 {[%emt 0:00:22]} 29. Red1 {[%emt 0:01:03]} Nf6 {[%emt 0:02:21]} 30. h3 {[%emt 0:00:41]} Ne8 {[%emt 0:00:36]} 31. f4 {[%emt 0:01:49]} f6 {[%emt 0:00:39]} 32. c5 {[%emt 0:01:06]} dxc5 {[%emt 0:01:37]} 33. Rxd7 {[%emt 0:01:03]} Bxd7 {[%emt 0:00:06]} 34. Qxc5 {[%emt 0:02:44]} Qc8 {[%emt 0:00:41]} 35. Qxc8 {[%emt 0:00:31]} Bxc8 {[%emt 0:00:05]} 36. Bb4 {[%emt 0:00:34]} Rf7 {[%emt 0:00:49]} 37. Rd8 {[%emt 0:00:38]} Bd7 {[%emt 0:00:14]} 38. Bf3 {[%emt 0:00:30]} Kh7 {[%emt 0:00:40]} 39. f5 {[%emt 0:00:25]} Nc7 {[%emt 0:00:54]} 40. Bh5 {[%emt 0:00:00]} Bc6 {[%emt 0:00:00]} 41. Bg6# 1-0

[Event "41th GRE-ch Women 2018"]
[Site "Thessaloniki"]
[Date "2018.12.17"]
[Round "6"]
[White "Skaraki, Antigoni"]
[Black "Grapsa, Georgia"]
[Result "0-1"]
[ECO "B26"]
[WhiteElo "2012"]
[BlackElo "2097"]
[Annotator "NA"]
[PlyCount "74"]
[EventDate "2018.12.12"]
[EventType "tourn"]
[EventCountry "GRE"]
[SourceTitle "playchess.com"]
[Source "ChessBase"]
[SourceQuality "1"]
[TimeControl "40/5400+30:1800+30"]

1. e4 {[%emt 0:00:00]} c5 {[%emt 0:00:00]} 2. Nc3 {[%emt 0:00:00]} d6 {[%emt 0:00:00]} 3. g3 {[%emt 0:00:00]} Nc6 {[%emt 0:00:06]} 4. Bg2 {[%emt 0:00:00]} g6 {[%emt 0:00:10]} 5. d3 {[%emt 0:00:08]} Bg7 {[%emt 0:00:13]} 6. Be3 {[%emt 0:00:12]} Rb8 {[%emt 0:01:44]} 7. Nge2 {[%emt 0:01:22]} b5 {[%emt 0:00:23]} 8. Qd2 {[%emt 0:00:21]} b4 {[%emt 0:01:43]} 9. Nd1 {[%emt 0:00:10]} a5 {[%emt 0:00:36]} 10. c3 {[%emt 0:06:52]} Ne5 {[%emt 0:08:16]} 11. f4 {[%emt 0:07:56]} Bh3 $11 {[%emt 0:02:12]} 12. O-O {[%emt 0:00:39]} Bxg2 {[%emt 0:00:05]} 13. Kxg2 {[%emt 0:00:04]} Ng4 {[%emt 0:01:10]} 14. Bg1 {[%emt 0:03:20]} f5 {[%emt 0:05:41]} 15. exf5 {[%emt 0:31:05]} gxf5 {[%emt 0:00:20]} 16. h3 {[%emt 0:00:39]} N4f6 {[%emt 0:01:08]} 17. Ne3 {[%emt 0:00:48]} Nh6 {[%emt 0:02:19]} 18. a3 {[%emt 0:10:36]} O-O {[%emt 0:13:28]} 19. axb4 {[%emt 0:01:10]} axb4 {[%emt 0:00:05]} 20. Qc2 {[%emt 0:10:05]} Qb6 {[%emt 0:02:33]} 21. Nc4 {[%emt 0:05:54]} Qb7+ {[%emt 0:00:41]} 22. Kf2 {[%emt 0:01:28]} Qh1 {[%emt 0:06:03]} 23. h4 {[%emt 0:04:04]} Nhg4+ {[%emt 0:00:37]} 24. Ke1 {[%emt 0:00:11]} Qg2 {[%emt 0:05:57]} 25. Qd2 {[%emt 0:05:14]} Ra8 {[%emt 0:03:22]} 26. Rc1 {[%emt 0:01:56]} Rfb8 {[%emt 0:06:03]} 27. Ne3 {[%emt 0:04:26]} Nxe3 {[%emt 0:00:08]} 28. Qxe3 {[%emt 0:00:25]} Kf7 {[%emt 0:00:31]} 29. Kd2 {[%emt 0:03:45]} bxc3+ {[%emt 0:04:19]} 30. bxc3 {[%emt 0:00:01]} Ra2+ {[%emt 0:00:46]} 31. Ke1 {[%emt 0:00:11]} Rbb2 {[%emt 0:00:20]} 32. Rf2 {[%emt 0:00:27]} Rxe2+ {[%emt 0:02:43]} 33. Rxe2 {[%emt 0:00:27]} Rxe2+ {[%emt 0:00:06]} 34. Qxe2 {[%emt 0:00:07]} Qxg1+ {[%emt 0:00:05]} 35. Kd2 {[%emt 0:00:18]} Qxg3 {[%emt 0:00:11]} 36. Rf1 {[%emt 0:01:31]} Nd5 {[%emt 0:01:35]} 37. Re1 {[%emt 0:01:32]} Bxc3+ {[%emt 0:00:12]} 0-1

[Event "41th GRE-ch Women 2018"]
[Site "Thessaloniki"]
[Date "2018.12.17"]
[Round "6"]
[White "Androni, Konstantina"]
[Black "Tsivelekidou, Evgenia"]
[Result "1/2-1/2"]
[ECO "E47"]
[WhiteElo "1912"]
[BlackElo "1861"]
[Annotator "NA"]
[PlyCount "102"]
[EventDate "2018.12.12"]
[EventType "tourn"]
[EventCountry "GRE"]
[SourceTitle "playchess.com"]
[Source "ChessBase"]
[SourceQuality "1"]
[TimeControl "40/5400+30:1800+30"]

1. d4 {[%emt 0:00:00]} Nf6 {[%emt 0:00:00]} 2. c4 {[%emt 0:00:00]} e6 {[%emt 0:00:00]} 3. Nc3 {[%emt 0:00:00]} Bb4 {[%emt 0:00:00]} 4. e3 {[%emt 0:00:02]} O-O {[%emt 0:00:01]} 5. Bd3 {[%emt 0:00:05]} d6 {[%emt 0:00:30]} 6. Nge2 {[%emt 0:00:38]} c5 {[%emt 0:00:29]} 7. O-O {[%emt 0:01:14]} Nc6 {[%emt 0:01:50]} 8. a3 {[%emt 0:01:18]} Ba5 {[%emt 0:00:31]} 9. Bd2 {[%emt 0:16:34]} Qe7 {[%emt 0:02:36]} 10. Ne4 $14 {[%emt 0:00:30]} Bxd2 {[%emt 0:05:50]} 11. Qxd2 {[%emt 0:00:02]} b6 {[%emt 0:08:56]} 12. b4 {[%emt 0:05:25]} cxd4 {[%emt 0:09:18]} 13. exd4 {[%emt 0:00:14]} Bb7 {[%emt 0:00:51]} 14. Rfe1 {[%emt 0:03:00]} Rfc8 {[%emt 0:13:55]} 15. N4g3 {[%emt 0:08:56]} a5 {[%emt 0:03:35]} 16. b5 {[%emt 0:00:14]} Nb8 {[%emt 0:01:12]} 17. Nc3 {[%emt 0:16:58]} d5 {[%emt 0:06:04]} 18. Qg5 {[%emt 0:02:54]} Qd8 {[%emt 0:10:48]} 19. Nh5 {[%emt 0:13:45]} Nxh5 {[%emt 0:00:35]} 20. Qxh5 {[%emt 0:00:01]} g6 {[%emt 0:03:36]} 21. Qf3 {[%emt 0:02:43]} Nd7 {[%emt 0:02:12]} 22. Rad1 {[%emt 0:03:35]} dxc4 {[%emt 0:04:41]} 23. Qxb7 {[%emt 0:05:18]} cxd3 {[%emt 0:00:06]} 24. Nb1 {[%emt 0:00:59]} Nf6 {[%emt 0:02:37]} 25. Qf3 {[%emt 0:01:19]} Qxd4 {[%emt 0:04:35]} 26. Rxd3 {[%emt 0:00:09]} Qh4 {[%emt 0:01:09]} 27. g3 {[%emt 0:00:47]} Qg5 {[%emt 0:00:07]} 28. Rd4 {[%emt 0:03:22]} Nd5 {[%emt 0:01:31]} 29. h4 {[%emt 0:00:25]} Qf6 {[%emt 0:02:15]} 30. Qd3 {[%emt 0:01:12]} Qf5 {[%emt 0:02:12]} 31. Qxf5 {[%emt 0:04:36]} gxf5 {[%emt 0:00:06]} 32. a4 {[%emt 0:00:54]} Rc5 {[%emt 0:03:45]} 33. Nd2 {[%emt 0:00:23]} Rac8 {[%emt 0:00:24]} 34. g4 {[%emt 0:01:18]} fxg4 {[%emt 0:01:02]} 35. Rxg4+ {[%emt 0:00:02]} Kf8 {[%emt 0:00:50]} 36. Kg2 {[%emt 0:02:22]} Rc1 {[%emt 0:02:21]} 37. Rxc1 {[%emt 0:00:56]} Rxc1 {[%emt 0:00:04]} 38. Nf3 {[%emt 0:00:28]} Rc2 {[%emt 0:02:17]} 39. Kf1 {[%emt 0:02:59]} Rc1+ {[%emt 0:00:56]} 40. Ke2 {[%emt 0:00:00]} Rc2+ {[%emt 0:00:00]} 41. Ke1 {[%emt 0:05:54]} Rb2 {[%emt 0:09:32]} 42. Ne5 {[%emt 0:04:36]} Rb4 {[%emt 0:05:08]} 43. Rxb4 {[%emt 0:01:08]} axb4 {[%emt 0:00:12]} 44. Kd2 {[%emt 0:06:40]} Ke7 {[%emt 0:02:14]} 45. Kc2 {[%emt 0:02:31]} f6 {[%emt 0:02:38]} 46. Nd3 {[%emt 0:00:13]} Kd6 {[%emt 0:05:24]} 47. Kb3 {[%emt 0:00:08]} e5 {[%emt 0:00:59]} 48. Nxb4 {[%emt 0:02:20]} Ne7 {[%emt 0:01:02]} 49. Kc4 {[%emt 0:00:11]} h5 {[%emt 0:00:56]} 50. Nc2 {[%emt 0:03:32]} Nf5 {[%emt 0:05:37]} 51. Nb4 {[%emt 0:01:20]} Ne7 {[%emt 0:00:29]} 1/2-1/2

[Event "41th GRE-ch Women 2018"]
[Site "Thessaloniki"]
[Date "2018.12.18"]
[Round "7"]
[White "Grapsa, Georgia"]
[Black "Makka, Ioulia"]
[Result "0-1"]
[ECO "A40"]
[WhiteElo "2097"]
[BlackElo "2065"]
[Annotator "NA"]
[PlyCount "80"]
[EventDate "2018.12.12"]
[EventType "tourn"]
[EventCountry "GRE"]
[SourceTitle "playchess.com"]
[Source "ChessBase"]
[SourceQuality "1"]
[TimeControl "40/5400+30:1800+30"]

1. d4 {[%emt 0:00:00]} Nf6 {[%emt 0:00:00]} 2. c4 {[%emt 0:00:00]} e6 {[%emt 0:00:00]} 3. g3 {[%emt 0:00:00]} Bb4+ {[%emt 0:00:00]} 4. Bd2 {[%emt 0:00:00]} Qe7 {[%emt 0:00:09]} 5. Bg2 {[%emt 0:00:03]} Nc6 {[%emt 0:00:37]} 6. Nf3 {[%emt 0:00:09]} O-O {[%emt 0:04:29]} 7. O-O {[%emt 0:00:40]} Bxd2 {[%emt 0:03:06]} 8. Qxd2 {[%emt 0:03:48]} d5 {[%emt 0:05:24]} 9. cxd5 {[%emt 0:04:16]} exd5 {[%emt 0:00:14]} 10. Nc3 {[%emt 0:00:02]} Rd8 {[%emt 0:03:42]} 11. Rac1 {[%emt 0:06:25]} h6 {[%emt 0:11:50]} 12. Qc2 {[%emt 0:19:23]} Bg4 {[%emt 0:14:00]} 13. Rfd1 {[%emt 0:09:10]} Qe6 $14 {[%emt 0:00:00]} 14. Qb3 {[%emt 0:07:41]} Rab8 {[%emt 0:24:02]} 15. a4 {[%emt 0:17:28]} a6 {[%emt 0:02:15]} 16. Qa3 {[%emt 0:05:03]} Ne4 {[%emt 0:07:02]} 17. Qa2 {[%emt 0:08:37]} Nxc3 {[%emt 0:03:06]} 18. Rxc3 {[%emt 0:00:33]} Qf6 {[%emt 0:07:03]} 19. Ne5 {[%emt 0:02:01]} Nxe5 {[%emt 0:01:48]} 20. dxe5 {[%emt 0:00:02]} Qxe5 {[%emt 0:01:50]} 21. Rxd5 {[%emt 0:03:19]} Be6 {[%emt 0:02:02]} 22. e4 {[%emt 0:03:08]} Bxd5 {[%emt 0:02:20]} 23. exd5 {[%emt 0:00:04]} Qe1+ {[%emt 0:00:31]} 24. Bf1 {[%emt 0:00:04]} Rd7 {[%emt 0:01:36]} 25. Qc4 {[%emt 0:01:41]} Re8 {[%emt 0:00:49]} 26. Qf4 {[%emt 0:01:02]} Qe7 {[%emt 0:02:30]} 27. Bh3 {[%emt 0:01:20]} Rd6 {[%emt 0:00:52]} 28. Re3 {[%emt 0:01:22]} Qd8 {[%emt 0:00:24]} 29. Bg2 {[%emt 0:01:57]} Rf6 {[%emt 0:00:55]} 30. Qd4 {[%emt 0:00:32]} Rxe3 {[%emt 0:00:58]} 31. fxe3 {[%emt 0:00:34]} Qd6 {[%emt 0:00:32]} 32. a5 {[%emt 0:01:20]} b6 {[%emt 0:00:40]} 33. b4 {[%emt 0:00:27]} bxa5 {[%emt 0:00:20]} 34. bxa5 {[%emt 0:00:02]} Qa3 {[%emt 0:00:23]} 35. h4 {[%emt 0:00:55]} Qxa5 {[%emt 0:00:20]} 36. Qe5 {[%emt 0:00:10]} Qe1+ {[%emt 0:01:01]} 37. Kh2 {[%emt 0:00:04]} Rf2 {[%emt 0:00:28]} 38. Qe8+ {[%emt 0:01:00]} Kh7 {[%emt 0:00:03]} 39. Qe4+ {[%emt 0:00:59]} f5 {[%emt 0:00:26]} 40. Qd3 {[%emt 0:00:00]} Qe2 0-1